bitfinex/quotes_ETHUSD_20251206
["timestamp","ask_amount","ask_price","bid_price","bid_amount"]
[1765020745652,0.002,3038.6,3038.3,3.81028702]
[1765020745856,0.002,3038.6,3038.3,4.27818702]
[1765020746543,0.002,3038.6,3038.4,0.519]
[1765020749930,0.002,3038.6,3038.4,3.81014906]
[1765020751272,0.2605,3038.5,3038.2,3.29134643]
[1765020751471,0.2605,3038.5,3038.3,0.519]
[1765020751776,0.2605,3038.5,3038.3,3.81028956]
[1765020753860,0.002,3038.6,3038.4,0.4864]
[1765020754255,0.002,3038.6,3038.4,0.9543]
[1765020754666,0.002,3038.6,3038.4,0.4864]
[1765020754867,0.002,3038.6,3038.3,3.81028956]
[1765020756777,0.002,3038.6,3038.3,4.27818956]
[1765020759178,0.002,3038.6,3038.5,0.4717]
[1765020759552,0.002,3038.6,3038.5,0.9567]
[1765020759977,0.002,3038.6,3038.5,4.24779758]
[1765020760482,0.002,3038.6,3038.5,0.4717]
[1765020761179,0.002,3038.6,3038.5,3.76279758]
[1765020762376,0.002,3038.6,3038.5,0.4717]
[1765020764182,0.2625,3038.6,3038.4,3.29117112]
[1765020764384,0.2625,3038.6,3038.3,4.29527204]
[1765020764587,0.2625,3038.6,3038.3,0.519]
[1765020764588,0.2869,3038.4,3038.3,0.519]
[1765020764876,0.2869,3038.4,3038.2,3.29140431]
[1765020765078,0.2869,3038.4,3038.3,0.519]
[1765020766396,0.002,3038.6,3038.3,0.519]
[1765020768392,0.2866,3038.4,3038.3,0.519]
[1765020771688,0.002,3038.6,3038.3,0.519]
[1765020773165,0.002,3038.6,3038.5,0.4818]
[1765020775700,0.002,3038.6,3038.5,0.9669]
[1765020776898,0.002,3038.6,3038.5,4.25799758]
[1765020777063,0.002,3038.6,3038.5,5.06481849]
[1765020778275,0.002,3038.6,3038.5,5.7904126]
[1765020779084,0.002,3038.6,3038.5,5.92215036]
[1765020786609,0.002,3038.6,3038.5,11.77014864]
[1765020794022,0.002,3038.6,3038.5,15.61014864]
[1765020798703,0.002,3038.6,3038.5,16.44379828]
[1765020798905,0.002,3038.9,3038.6,1.55924375]
[1765020799206,0.002,3038.9,3038.8,7.44219639]
[1765020799606,0.002,3038.9,3038.8,7.91609639]
[1765020799919,0.002,3038.9,3038.8,11.20686906]
[1765020800128,0.002,3038.9,3038.8,11.33857082]
[1765020800297,0.002,3038.9,3038.8,18.43864158]
[1765020800624,0.002,3038.9,3038.8,20.97984305]
[1765020801325,0.002,3039.5,3038.8,20.97984305]
[1765020801326,0.002,3039.5,3039.4,6.57359239]
[1765020801629,0.002,3039.5,3039.4,7.75439239]
[1765020801798,0.002,3039.5,3039.4,11.51841544]
[1765020801994,0.002,3039.5,3039.4,11.65009206]
[1765020802198,0.002,3039.5,3039.4,13.72892522]
[1765020803008,0.002,3039.5,3039.4,14.13442922]
[1765020803409,0.002,3039.5,3039.4,14.95835606]
[1765020820146,0.002,3039.5,3039.4,13.76675606]
[1765020820348,0.002,3039.5,3039.4,14.75445606]
[1765020823712,0.002,3039.6,3039.5,0.72559411]
[1765020824039,0.002,3039.6,3039.5,8.21007831]
[1765020824338,0.002,3039.6,3039.5,8.34175449]
[1765020825311,0.002,3039.6,3039.5,12.58725849]
[1765020825845,0.002,3039.6,3039.5,11.78952119]
[1765020826251,0.002,3039.6,3039.5,7.94952119]
[1765020828053,0.002,3039.6,3039.5,7.07531719]
[1765020828346,0.002,3039.6,3039.5,7.59431719]
[1765020829458,0.002,3039.6,3039.5,8.06301719]
[1765020830153,0.002,3039.6,3039.5,11.49011519]
[1765020830357,0.002,3039.6,3039.5,11.11092719]
[1765020830855,0.002,3039.6,3039.5,11.51643119]
[1765020833557,0.002,3039.9,3039.8,0.72559411]
[1765020833755,0.002,3039.9,3039.8,14.36371878]
[1765020833958,0.002,3039.9,3039.8,15.19312588]
[1765020834130,0.002,3039.9,3039.8,9.47677691]
[1765020834531,0.002,3039.9,3039.8,15.32477519]
[1765020834830,0.002,3039.9,3039.8,18.6144653]
[1765020835056,0.002,3039.9,3039.8,23.4621773]
[1765020835254,0.002,3039.9,3039.8,17.27087502]
[1765020835457,0.002,3039.9,3039.8,17.72767502]
[1765020835653,0.002,3039.9,3039.8,18.13317902]
[1765020836946,0.002,3039.9,3039.8,23.9811773]
[1765020841557,0.002,3039.9,3039.8,18.13317902]
[1765020843463,0.002,3039.9,3039.8,17.67637902]
[1765020843659,0.002,3039.9,3039.8,18.13317902]
[1765020843861,0.361,3039.9,3039.8,11.42686302]
[1765020844174,0.361,3039.9,3039.8,11.94586302]
[1765020844965,0.6476,3039.9,3039.8,11.42686302]
[1765020845168,0.6476,3039.9,3039.8,10.51393181]
[1765020845766,0.6476,3039.9,3039.8,4.14693353]
[1765020845767,0.361,3039.9,3039.8,4.14693353]
[1765020846000,0.6476,3039.9,3039.8,10.51393181]
[1765020846154,0.6476,3039.9,3039.8,9.65668839]
[1765020846664,0.6476,3039.9,3039.7,7.12976216]
[1765020846968,0.2898,3039.8,3039.7,7.12976216]
[1765020847159,0.2898,3039.8,3039.7,8.37435627]
[1765020847577,0.2898,3039.8,3039.5,3.28997394]
[1765020847768,0.2869,3039.8,3039.7,0.519]
[1765020848157,0.5474,3039.8,3039.7,0.519]
[1765020848556,0.5474,3039.8,3039.6,0.72559411]
[1765020848780,0.2895,3039.7,3039.6,0.72559411]
[1765020848981,0.2895,3039.7,3039.6,1.24459411]
[1765020850077,0.2895,3039.7,3039.6,4.53450067]
[1765020852480,0.2895,3039.7,3039.6,0.72559411]
[1765020852787,0.2895,3039.7,3039.4,3.29008827]
[1765020853080,0.2869,3039.7,3039.5,3.80899661]
[1765020853466,0.2605,3039.6,3039.5,3.80899661]
[1765020853881,0.5471,3039.6,3039.5,3.80899661]
[1765020854184,0.5471,3039.6,3039.5,0.519]
[1765020855086,0.5471,3039.6,3039.5,3.8090148]
[1765020861961,0.2605,3039.6,3039.5,3.8090148]
[1765020862172,0.5471,3039.6,3039.5,3.8090148]
[1765020864393,0.2605,3039.6,3039.5,3.8090148]
[1765020865070,0.5471,3039.6,3039.5,3.8090148]
[1765020866196,0.82392684,3040.0,3039.5,3.8090148]
[1765020866367,0.35848426,3039.9,3039.5,3.8090148]
[1765020869796,0.82392684,3040.0,3039.5,3.8090148]
[1765020873505,0.005,3040.2,3039.5,3.8090148]
[1765020873674,0.005,3040.2,3039.5,7.0990296]
[1765020875502,0.82392684,3040.1,3039.5,7.0990296]
[1765020876103,0.005,3040.2,3039.5,7.0990296]
[1765020880013,3.29426738,3040.2,3039.5,3.8090148]
[1765020880312,4.0349909,3040.2,3039.5,3.8090148]
[1765020880513,0.82392684,3040.1,3039.5,7.0990296]
[1765020880818,0.82392684,3040.1,3039.6,0.519]
[1765020881823,4.11329766,3040.1,3039.6,0.519]
[1765020883624,4.11329766,3040.1,3039.5,3.29000402]
[1765020883625,0.1,3040.0,3039.5,3.29000402]
[1765020883781,0.42132977,3039.9,3039.5,0.519]
[1765020884506,1.24525661,3039.9,3039.5,0.519]
[1765020886420,1.24525661,3039.9,3039.5,3.80900728]
[1765020887021,0.82392684,3039.9,3039.5,3.80900728]
[1765020888022,4.11336468,3040.1,3039.5,3.80900728]
[1765020888993,3.29430113,3040.2,3039.5,3.80900728]
[1765020889323,0.82392684,3040.1,3039.5,3.80900728]
[1765020890195,0.82392684,3040.1,3039.5,4.29160728]
[1765020891303,1.31814232,3040.1,3039.5,4.29160728]
[1765020892121,4.60750839,3040.1,3039.5,4.29160728]
[1765020892497,4.60750839,3040.1,3039.5,3.80900728]
[1765020893221,0.1,3040.0,3039.5,3.80900728]
[1765020893398,0.1,3040.0,3039.5,0.519]
[1765020893594,0.82392684,3039.9,3039.3,3.29021693]
[1765020893793,0.82392684,3039.9,3039.3,1.24459411]
[1765020893794,0.82392684,3039.7,3039.3,1.24459411]
[1765020894121,0.82392684,3039.7,3039.1,3.29041624]
[1765020894317,0.98871221,3039.7,3039.1,3.29041624]
[1765020894522,0.98871221,3039.7,3039.1,0.519]
[1765020898927,4.27854142,3039.7,3039.1,3.80943769]
[1765020900822,4.27854142,3039.7,3039.1,3.29043769]
[1765020901027,0.98871221,3039.7,3039.1,3.80943769]
[1765020901526,0.98871221,3039.7,3039.1,4.28883769]
[1765020901827,0.98871221,3039.7,3039.1,7.09988551]
[1765020902028,0.82392684,3039.7,3039.2,0.4794]
[1765020903328,0.82392684,3039.7,3039.2,3.76970925]
[1765020904498,0.82392684,3039.7,3039.2,3.29030925]
[1765020904696,0.82392684,3039.7,3039.3,0.4794]
[1765020905140,0.82392684,3039.7,3039.2,3.76970925]
[1765020905723,4.60751808,3039.7,3039.2,0.4794]
[1765020905930,4.60751808,3039.7,3039.1,3.80942941]
[1765020906233,1.31768245,3039.7,3039.2,3.29029152]
[1765020906421,0.49375561,3039.7,3039.2,3.76969152]
[1765020906621,0.82392684,3039.8,3039.3,0.4794]
[1765020907514,0.82392684,3039.8,3039.3,3.76961716]
[1765020908026,0.82392684,3039.8,3039.4,0.4794]
[1765020908211,0.82392684,3039.9,3039.4,0.4794]
[1765020909613,0.82392684,3039.9,3039.4,3.76946081]
[1765020910015,0.82392684,3039.9,3039.5,0.4806]
[1765020910215,1.31765619,3039.9,3039.5,0.4806]
[1765020913303,1.31765619,3039.9,3039.3,3.77079699]
[1765020916014,1.31765619,3039.9,3039.3,3.29019699]
[1765020916202,0.82392684,3039.9,3039.4,0.4806]
[1765020917532,4.11351111,3039.9,3039.4,0.4806]
[1765020919937,0.82392684,3039.9,3039.4,3.77070465]
[1765020920514,0.82392684,3039.9,3039.5,0.4806]
[1765020921634,4.11351001,3039.9,3039.5,0.4806]
[1765020921939,4.11351001,3039.9,3039.2,5.84603664]
[1765020921940,0.82392684,3039.7,3039.2,3.29032738]
[1765020922241,0.82392684,3039.7,3039.2,0.519]
[1765020922943,0.82392684,3039.5,3039.2,0.519]
[1765020924522,0.82392684,3039.5,3039.1,4.29002498]
[1765020925627,0.92392684,3039.5,3039.1,3.80942498]
[1765020926026,4.61773973,3039.5,3038.9,0.4806]
[1765020926234,0.82392684,3039.3,3039.0,0.519]
[1765020926621,0.82392684,3039.3,3038.5,0.6752]
[1765020927021,0.82392684,3039.3,3038.6,0.519]
[1765020927221,0.82392684,3039.3,3038.5,3.96625762]
[1765020927422,0.19120512,3039.2,3038.6,0.519]
[1765020927752,0.19120512,3039.2,3038.7,0.519]
[1765020928652,3.48156971,3039.2,3038.6,0.519]
[1765020928847,0.82392684,3039.1,3038.6,0.519]
[1765020929343,0.82392684,3039.1,3038.6,0.9996]
[1765020929551,1.66589238,3039.1,3038.6,0.9996]
[1765020929843,1.66589238,3039.1,3038.6,0.519]
[1765020930721,1.66589238,3039.1,3038.6,0.9996]
[1765020930921,1.66589238,3039.1,3038.6,4.29058615]
[1765020931150,1.66589238,3039.1,3038.7,0.4806]
[1765020931347,4.27827287,3039.4,3039.0,0.4938]
[1765020931522,4.27827287,3039.4,3039.1,0.4938]
[1765020932533,4.27827287,3039.4,3038.9,0.4806]
[1765020933021,0.82392684,3039.3,3038.9,0.4806]
[1765020933653,4.11420465,3039.3,3038.9,0.4806]
[1765020933851,0.5102329,3039.2,3038.9,0.4806]
[1765020937053,0.98812439,3039.4,3039.1,0.4938]
[1765020937254,1.32769276,3039.5,3039.3,0.4938]
[1765020937443,0.82392684,3039.5,3039.3,0.4938]
[1765020937652,0.82392684,3039.5,3039.1,0.4806]
[1765020937825,4.11396905,3039.5,3039.1,0.4806]
[1765020938958,3.28993875,3039.6,3039.1,0.4806]
[1765020939157,0.82392684,3039.5,3039.4,0.4591]
[1765020939379,0.6444842,3039.5,3039.4,0.4591]
[1765020939562,0.82392684,3039.7,3039.4,0.9559]
[1765020945038,0.82392684,3039.7,3039.5,0.4968]
[1765020949882,0.82392684,3039.7,3039.1,3.29040589]
[1765020950094,0.92392684,3039.7,3039.1,3.78720589]
[1765020950260,0.82392684,3039.5,3039.1,3.78720589]
[1765020950584,0.82392684,3039.5,3039.2,0.4968]
[1765020955586,0.82392684,3039.7,3039.4,0.4591]
[1765020956068,0.82392684,3039.7,3039.4,0.9559]
[1765020956388,3.2897353,3039.8,3039.4,0.9559]
[1765020956566,4.03005116,3039.8,3039.4,0.9559]
[1765020956890,4.03005116,3039.8,3039.5,0.4968]
[1765020959181,0.82392684,3039.7,3039.5,0.4968]
[1765020960898,4.11373314,3039.7,3039.2,0.4893]
[1765020961059,4.11373314,3039.7,3039.3,0.4893]
[1765020961491,5.02048893,3039.7,3039.3,0.4893]
[1765020964092,0.82392684,3039.7,3039.3,0.4893]
[1765020964493,4.11372888,3039.7,3039.3,0.4893]
[1765020972607,0.82392684,3039.5,3039.3,0.4893]
[1765020973476,4.11372888,3039.7,3039.4,0.4981]
[1765020973880,0.82392684,3039.7,3039.5,0.4679]
[1765020974704,0.82392684,3039.7,3039.6,0.4981]
[1765020975400,0.82392684,3039.9,3039.6,0.4981]
[1765020975693,0.82392684,3039.9,3039.8,0.4981]
[1765020977376,4.11350873,3039.9,3039.8,0.4981]
[1765020977613,4.11350873,3039.9,3039.7,0.4679]
[1765020979807,4.11350873,3039.9,3039.5,0.4679]
[1765020987735,4.11350873,3039.9,3039.8,0.4981]
[1765020988809,4.11350873,3039.9,3039.7,0.4679]
[1765020990713,4.11350873,3039.9,3039.8,0.4981]
[1765020994318,4.11350873,3039.9,3039.7,0.4679]
[1765020995435,4.93620006,3039.9,3039.7,0.4679]
[1765020998599,4.93620006,3039.9,3039.6,0.4679]
[1765021000442,4.11350873,3039.9,3039.6,0.4679]
[1765021010233,4.11350873,3039.9,3039.8,0.4682]
[1765021011323,4.11350873,3039.9,3039.8,0.9616]
[1765021013128,4.11350873,3039.9,3039.8,0.4682]
[1765021015343,4.11350873,3039.9,3039.8,0.9552]
[1765021015344,0.82392684,3039.9,3039.8,0.9552]
[1765021015540,0.82392684,3039.9,3039.8,0.4682]
[1765021015978,0.82392684,3039.9,3039.8,0.9552]
[1765021021761,0.82392684,3039.9,3039.1,3.29042305]
[1765021021762,0.1,3039.8,3038.8,0.72559411]
[1765021021963,0.82392684,3039.1,3038.6,0.487]
[1765021022161,0.82392684,3039.1,3038.6,1.006]
[1765021022474,0.1,3039.0,3038.5,0.1946]
[1765021023151,0.82392684,3038.7,3038.3,0.6703]
[1765021023359,0.82392684,3038.7,3038.3,1.1893]
[1765021023661,0.82392684,3038.7,3038.3,0.6703]
[1765021023855,0.82392684,3038.7,3038.3,0.1833]
[1765021024051,0.82392684,3038.7,3038.4,0.487]
[1765021026381,4.11481501,3038.7,3038.4,0.487]
[1765021026601,0.82392684,3038.5,3038.3,0.1833]
[1765021026886,0.82392684,3038.5,3038.3,0.001]
[1765021027875,4.11507455,3038.5,3038.3,0.001]
[1765021029698,0.1,3038.4,3038.3,0.001]
[1765021030104,3.39120589,3038.4,3038.3,0.001]
[1765021030302,0.1,3038.4,3038.3,0.001]
[1765021031090,4.1150371,3038.5,3038.3,0.001]
[1765021031276,0.41150371,3038.4,3038.3,0.001]
[1765021032371,9.96063628,3038.4,3038.3,0.001]
[1765021032767,4.1082136,3038.4,3038.3,0.001]
[1765021032986,4.2082136,3038.4,3038.3,0.001]
[1765021033495,3.7027096,3038.4,3038.3,0.001]
[1765021034508,0.41150371,3038.4,3038.3,0.4989]
[1765021034801,0.41150371,3038.4,3038.3,0.9601]
[1765021035215,1.34292684,3038.5,3038.3,0.9601]
[1765021035389,3.29102746,3038.6,3038.4,0.9591]
[1765021035390,0.82392684,3038.6,3038.4,0.9591]
[1765021035594,0.82392684,3038.6,3038.5,0.9591]
[1765021038511,4.52010593,3038.9,3038.5,0.9591]
[1765021038512,3.29081085,3038.8,3038.5,0.9591]
[1765021038676,0.82392684,3038.7,3038.6,0.9591]
[1765021038875,0.82392684,3038.7,3038.6,0.4612]
[1765021039109,0.82392684,3038.7,3038.6,0.9591]
[1765021044380,3.29098927,3038.6,3038.3,0.001]
[1765021044701,3.29098927,3038.6,3038.3,0.4622]
[1765021044702,0.82392684,3038.4,3038.3,0.4622]
[1765021045173,0.82392684,3038.4,3038.3,0.9601]
[1765021045776,0.82392684,3038.5,3038.3,0.9601]
[1765021045976,0.82392684,3038.5,3038.4,0.4612]
[1765021046174,0.82392684,3038.5,3038.4,0.9591]
[1765021046478,4.75830521,3038.5,3038.3,0.001]
[1765021047614,1.4671898,3038.5,3038.3,0.4622]
[1765021048110,3.29120589,3038.4,3038.3,0.001]
[1765021048498,4.65833061,3038.5,3038.3,0.001]
[1765021050282,4.75833061,3038.5,3038.3,0.001]
[1765021050477,0.80493471,3038.4,3038.3,0.001]
[1765021050979,6.85735739,3038.4,3038.3,0.001]
[1765021051300,6.75735739,3038.4,3038.3,0.001]
[1765021051709,7.16286139,3038.4,3038.3,0.001]
[1765021052306,7.29466427,3038.4,3038.3,0.001]
[1765021054389,10.68587016,3038.4,3038.3,0.001]
[1765021058629,17.26388695,3038.4,3038.3,0.001]
[1765021058812,34.62463595,3038.4,3038.3,0.001]
[1765021059706,34.82975095,3038.4,3038.3,0.001]
[1765021059897,26.52449295,3038.4,3038.3,0.001]
[1765021060704,26.59666395,3038.4,3038.3,0.001]
[1765021060904,20.12896995,3038.4,3038.3,0.001]
[1765021061100,14.47023527,3038.4,3038.3,0.001]
[1765021061943,39.17070695,3038.4,3038.3,0.001]
[1765021062876,43.32153395,3038.4,3038.3,0.001]
[1765021063127,42.17301895,3038.4,3038.3,0.001]
[1765021063908,43.10681795,3038.4,3038.3,0.001]
[1765021064726,41.80464095,3038.4,3038.3,0.001]
[1765021064903,21.48720295,3038.4,3038.3,0.001]
[1765021065934,17.26388695,3038.4,3038.3,0.001]
[1765021066104,33.51767995,3038.4,3038.3,0.001]
[1765021067038,35.58616895,3038.4,3038.3,0.001]
[1765021068145,36.14776695,3038.4,3038.3,0.001]
[1765021069546,35.58613595,3038.4,3038.3,0.001]
[1765021071241,35.64609695,3038.4,3038.3,0.001]
[1765021072239,36.31692895,3038.4,3038.3,0.001]
[1765021073210,44.66341295,3038.4,3038.3,0.001]
[1765021073739,44.66341295,3038.4,3037.1,0.001]
[1765021073740,0.605504,3037.8,3037.1,0.001]
[1765021073916,39.56099747,3037.8,3037.1,0.001]
[1765021074240,40.99437673,3037.8,3037.1,0.001]
[1765021074413,41.12622914,3037.8,3037.1,0.001]
[1765021076341,11.12622914,3037.8,3037.1,0.001]
[1765021076521,42.44401204,3037.8,3037.1,0.001]
[1765021079439,48.29643472,3037.8,3037.1,0.001]
[1765021079642,32.93201804,3037.8,3037.1,0.641]
[1765021079847,32.93201804,3037.8,3037.2,0.4516]
[1765021080542,42.44401204,3037.8,3037.2,0.4516]
[1765021081047,40.71175904,3037.8,3037.2,0.4516]
[1765021081351,19.58148404,3037.8,3037.7,0.9297]
[1765021081653,19.58148404,3037.8,3037.7,0.001]
[1765021082336,33.15179804,3037.8,3037.7,0.001]
[1765021082531,29.80426604,3037.8,3037.7,0.001]
[1765021083221,31.03015804,3037.8,3037.7,0.001]
[1765021084354,32.41948904,3037.8,3037.7,0.001]
[1765021085224,31.90101904,3037.8,3037.7,0.001]
[1765021086248,12.44401204,3037.8,3037.7,0.001]
[1765021086553,22.23934804,3037.8,3037.7,0.001]
[1765021087337,24.79559104,3037.8,3037.7,0.001]
[1765021087547,23.79559104,3037.8,3037.7,0.001]
[1765021087750,15.35764504,3037.8,3037.7,0.4791]
[1765021087954,15.87664504,3037.8,3037.7,0.9297]
[1765021088151,15.77664504,3037.8,3037.7,0.9297]
[1765021088830,15.87664504,3037.8,3037.7,0.9297]
[1765021092459,15.88143498,3037.8,3037.7,0.9297]
[1765021093933,15.36243498,3037.8,3037.7,0.9297]
[1765021094133,15.88143498,3037.8,3037.7,0.9297]
[1765021098636,6.59158936,3037.8,3037.7,0.9297]
[1765021098835,6.07258936,3037.8,3037.7,0.9297]
[1765021099056,6.59158936,3037.8,3037.7,0.9297]
[1765021099260,6.07258936,3037.8,3037.7,0.9297]
[1765021099563,6.59158936,3037.8,3037.7,0.9297]
[1765021100559,6.45973695,3037.8,3037.7,0.9297]
[1765021101336,5.96588089,3037.8,3037.7,0.9297]
[1765021101537,5.86588089,3037.8,3037.7,0.9297]
[1765021102244,5.96588089,3037.8,3037.7,0.9297]
[1765021103574,5.86588089,3037.8,3037.7,0.9297]
[1765021106643,4.52128678,3037.8,3037.7,0.9297]
[1765021106861,5.04028678,3037.8,3037.7,0.9297]
[1765021107044,4.52128678,3037.8,3037.7,0.9297]
[1765021107243,5.04028678,3037.8,3037.7,0.9297]
[1765021109870,4.11578278,3037.8,3037.7,0.9297]
[1765021111976,4.21578278,3037.8,3037.7,0.9297]
[1765021112778,4.11578278,3037.8,3037.7,0.9297]
[1765021113375,4.52128678,3037.8,3037.7,0.4791]
[1765021113568,5.35448939,3037.8,3037.7,0.9474]
[1765021113967,5.45448939,3037.8,3037.7,0.9474]
[1765021121554,4.11578278,3037.8,3037.7,0.9474]
[1765021122075,0.82392684,3037.8,3037.7,0.9474]
[1765021129494,4.11578278,3037.8,3037.7,0.9474]
[1765021130291,0.82392684,3037.8,3037.7,0.9474]
[1765021134794,0.82392684,3038.3,3037.7,0.9474]
[1765021134968,0.82392684,3038.1,3037.8,0.489]
[1765021135367,0.82392684,3038.1,3038.0,0.6591]
[1765021135895,0.82392684,3038.1,3038.0,1.1481]
[1765021140906,4.11545773,3038.1,3038.0,1.1481]
[1765021141406,0.82392684,3038.1,3038.0,1.1481]
[1765021145444,0.82392684,3038.5,3038.0,8.17536847]
[1765021145595,0.82392684,3038.5,3038.4,0.4656]
[1765021146102,0.82392684,3038.5,3038.4,0.9546]
[1765021146912,0.82392684,3038.7,3038.4,0.9546]
[1765021147114,0.82392684,3038.7,3038.6,0.4656]
[1765021147614,0.82392684,3038.7,3038.6,0.9546]
[1765021154121,0.82392684,3038.9,3038.6,0.9546]
[1765021154290,0.82392684,3038.9,3038.8,0.486]
[1765021154702,0.82392684,3038.9,3038.8,0.9369]
[1765021155222,4.11459122,3038.9,3038.8,0.9369]
[1765021156833,0.82392684,3038.9,3038.8,0.9369]
[1765021159030,0.82592684,3039.1,3038.8,0.9369]
[1765021159233,0.82592684,3039.1,3039.0,0.486]
[1765021159924,0.82592684,3039.1,3039.0,0.9369]
[1765021162328,0.002,3039.1,3039.0,0.9369]
[1765021163796,0.002,3039.1,3039.0,4.2274561]
[1765021163997,0.002,3039.1,3037.7,0.001]
[1765021163998,4.24398,3038.0,3037.7,0.001]
[1765021164213,6.35614033,3037.8,3037.7,0.001]
[1765021164414,10.44672259,3037.8,3037.7,0.001]
[1765021164633,3.52367836,3037.8,3037.7,0.001]
[1765021164849,4.04367836,3037.8,3037.7,0.001]
[1765021165022,3.52367836,3037.8,3037.7,0.001]
[1765021165353,0.23182242,3037.8,3037.7,0.487]
[1765021166117,0.1,3037.8,3037.7,0.9379]
[1765021168037,0.1,3037.8,3037.7,0.487]
[1765021168224,0.82392684,3037.9,3037.7,0.9379]
[1765021168540,0.82392684,3038.1,3037.7,0.9379]
[1765021168541,0.82392684,3038.1,3037.8,0.486]
[1765021168729,0.82392684,3038.3,3038.0,0.486]
[1765021168930,0.92392684,3038.3,3038.2,0.486]
[1765021169246,5.1209155,3038.3,3037.8,0.4509]
[1765021169446,4.2152765,3038.3,3037.8,0.4509]
[1765021172530,0.1,3038.1,3037.8,0.4509]
[1765021173455,0.1,3038.1,3038.0,0.486]
[1765021174847,0.1,3038.1,3038.0,0.9369]
[1765021175245,3.39134966,3038.3,3038.0,0.9369]
[1765021175447,3.39134966,3038.3,3038.1,0.4509]
[1765021175953,0.1,3038.3,3038.1,0.4509]
[1765021176128,1.006,3038.5,3038.2,0.486]
[1765021176452,1.106,3038.5,3038.2,0.486]
[1765021176752,0.62,3038.5,3038.2,0.9369]
[1765021176937,3.29122218,3038.4,3038.2,0.9369]
[1765021177131,3.91113996,3038.5,3038.2,0.9369]
[1765021177349,3.39113996,3038.5,3038.2,0.9369]
[1765021177551,3.29113996,3038.5,3038.2,0.9369]
[1765021177755,7.08006717,3038.9,3038.1,0.1948]
[1765021177756,3.29077267,3038.8,3038.4,0.486]
[1765021177959,3.99877939,3038.8,3038.7,0.486]
[1765021178540,4.48477939,3038.8,3038.7,0.486]
[1765021178855,3.29077267,3038.8,3038.7,0.486]
[1765021183462,3.2907038,3038.9,3038.7,0.9766]
[1765021183669,3.2905561,3039.0,3038.7,0.9766]
[1765021183851,0.92392684,3038.9,3038.7,0.9766]
[1765021184058,0.1,3038.8,3038.7,0.9766]
[1765021185960,4.11465054,3038.9,3038.7,0.9766]
[1765021186453,4.11465054,3038.9,3038.8,0.4741]
[1765021186947,4.11465054,3038.9,3038.8,0.9647]
[1765021187146,0.82392684,3038.9,3038.8,0.9647]
[1765021188038,4.11459122,3038.9,3038.8,0.9647]
[1765021188272,3.29057856,3039.0,3038.8,0.9647]
[1765021188566,3.81057856,3039.0,3038.9,0.9647]
[1765021189137,3.91057856,3039.0,3038.9,0.9647]
[1765021189367,0.1,3039.0,3038.9,0.9647]
[1765021189738,0.1,3039.0,3038.9,0.4741]
[1765021190138,3.39056117,3039.0,3038.7,0.4906]
[1765021191042,0.1,3038.7,3038.2,3.29138388]
[1765021191246,0.1,3038.7,3038.5,0.4865]
[1765021191447,0.1,3038.7,3038.6,0.482]
[1765021191647,0.1,3038.8,3038.6,0.482]
[1765021191848,0.1,3038.8,3038.6,0.9685]
[1765021193073,4.21460768,3038.9,3038.7,0.482]
[1765021194040,4.21460768,3038.9,3038.7,0.9685]
[1765021194041,0.92392684,3038.9,3038.7,0.9685]
[1765021194241,9.9670496,3039.1,3038.8,0.482]
[1765021194468,9.9670496,3039.1,3039.0,0.482]
[1765021194469,0.002,3039.1,3039.0,0.482]
[1765021194874,0.002,3039.1,3039.0,0.9685]
[1765021201656,6.67656317,3039.1,3038.3,0.52]
[1765021201876,7.67325633,3039.1,3038.4,0.4865]
[1765021202064,0.82392684,3038.9,3038.4,0.4865]
[1765021203380,9.96530748,3038.9,3038.1,0.1948]
[1765021203581,9.96530748,3038.9,3038.1,0.6813]
[1765021203582,6.67456317,3038.7,3038.1,0.6813]
[1765021203770,0.82392684,3038.5,3038.2,0.4865]
[1765021203976,6.67456317,3038.5,3038.2,0.4865]
[1765021204378,6.77456317,3038.5,3038.2,0.4865]
[1765021204879,6.77456317,3038.5,3038.1,0.1948]
[1765021205086,7.53441217,3038.5,3038.1,0.1948]
[1765021205285,0.1,3038.4,3038.1,0.6813]
[1765021206589,3.39122529,3038.4,3038.1,0.1948]
[1765021206770,3.39122529,3038.4,3038.1,0.6813]
[1765021207905,6.67456317,3038.3,3037.8,0.4865]
[1765021208583,0.1,3038.1,3037.8,0.4865]
[1765021208984,0.1,3038.1,3037.7,0.72659411]
[1765021208985,5.85063633,3037.9,3037.7,0.001]
[1765021209164,6.26170226,3037.9,3037.7,0.001]
[1765021209376,6.36170226,3037.9,3037.7,0.001]
[1765021209697,5.95063633,3037.9,3037.7,0.001]
[1765021209988,9.24247041,3037.9,3037.7,0.001]
[1765021210190,0.1,3037.9,3037.7,0.001]
[1765021210363,0.1,3037.9,3037.7,0.4932]
[1765021210697,3.39175256,3037.9,3037.7,0.4932]
[1765021211976,0.1,3037.9,3037.7,0.4932]
[1765021212467,3.39168034,3038.0,3037.8,0.4943]
[1765021213036,0.1,3037.9,3037.8,0.4943]
[1765021215066,0.1,3037.9,3037.7,0.4932]
[1765021215393,3.39175202,3037.9,3037.7,0.4932]
[1765021216193,0.1,3037.9,3037.7,0.4932]
[1765021216390,0.1,3037.9,3037.8,0.4943]
[1765021216688,0.1,3038.0,3037.8,0.4943]
[1765021216898,0.1,3038.0,3037.9,0.9865]
[1765021218696,3.39163923,3038.0,3037.7,0.001]
[1765021218864,3.39163923,3038.0,3037.7,0.4932]
[1765021220298,3.29163923,3038.0,3037.9,0.4943]
[1765021220977,3.29163923,3038.0,3037.9,0.9865]
[1765021221772,3.39163923,3038.0,3037.9,0.9865]
[1765021223701,4.11548237,3038.1,3037.9,0.9865]
[1765021224171,4.21548237,3038.1,3037.9,0.9865]
[1765021224372,4.21548237,3038.1,3037.9,0.4943]
[1765021225301,4.21548237,3038.1,3037.7,0.001]
[1765021225490,0.1,3037.9,3037.7,0.001]
[1765021225697,0.1,3037.9,3037.7,0.4932]